Cogmind - Beta 14 @@@ ROGUE MODE // 2024.11.30 @ 23:38:47 Player: WazdakkaGutsmek Result: Exoskeleton Destroyed Performance ------------- Evolutions (9) 4500 Regions Visited (14) 2800 Robots Destroyed (118) 590 Value Destroyed (5642) 5642 Prototype IDs (36) 720 Alien Tech Used (9) 1800 Bonus (22543) 22543 TOTAL SCORE: 38595 Bonus ------- Triggered Max Security 2000 High Alert Combat Kills 2737 Used Core Reset Matrix 3000 Integrated Exoskeleton 5000 Destroyed MAIN.C Guards 500 Met MAIN.C 5000 Destroyed MAIN.C Shell 5000 Friendly Fire -694 Cogmind --------- Core Integrity 0/1600 Matter 300/300 Energy 57/340 System Corruption 14% Temperature Cool (35) Movement Walking (30) Location -1/Command Parts ------- > --- POWER (1) -------- Zero-point Reactor > --- PROPULSION (3) --- Sigix Exoskeleton > --- UTILITY (4) ------ Advanced Target Analyzer AEGIS Remote Shield > --- WEAPON (3) ------- Sigix Sheargun Sigix Sheargun Sigix Sheargun > --- INVENTORY (5) ---- Experimental Energy Well (600) High-powered Transdimensional Reconstructor Peak State ------------ > --- POWER ------------ Zero-point Reactor > --- PROPULSION ------- Sigix Exoskeleton > --- UTILITY ---------- Experimental Targeting Computer Advanced Target Analyzer Thermal Barrier AEGIS Remote Shield > --- WEAPON ----------- Sigix Sheargun Sigix Sheargun Sigix Sheargun > --- INVENTORY -------- Experimental Energy Well Advanced Target Analyzer High-powered Transdimensional Reconstructor High-powered Transdimensional Reconstructor [Rating: 242] Favorites ----------- Power Backup Power III Engine Backup Power III Power Core Backup Power VII Reactor Light Antimatter Reactor Propulsion Improved Cesium-ion Thruster Treads Light Treads Leg Sigix Exoskeleton Wheel Compact Wheel Flight Unit Improved Cesium-ion Thruster Utility Hacking Suite Device Advanced Heat Sink Storage Medium Storage Unit Processor Advanced Terrain Scan Processor Hackware Hacking Suite Protection Improved Utility Shielding Artifact Phase Redirector Weapon Sigix Sheargun Energy Gun Sigix Sheargun Energy Cannon Plasma Cannon Ballistic Gun Assault Rifle Ballistic Cannon Advanced Assault Cannon Launcher Guided Micro-nuke Launcher Slashing Weapon Katana Piercing Weapon Plasma Lance Build | -11 -10 -9 -8 -7 -6 -5 -4 -3 -3 -2 -2 -2 -1 -1 ------- Run | Yrd Mat Mat Mat Fac Fac Fac Fac Res Qua Res Tes Sec Acc Com Slots Evolved 18 | . . 2 2 2 2 2 2 2 . 2 . . 2 . Power 1 | . . . . . . . 1 . . . . . . . Propulsion 4 | . . 1 1 1 1 . . . . . . . . . Utility 12 | . . 1 1 1 1 2 1 2 . 2 . . 1 . Weapon 1 | . . . . . . . . . . . . . 1 . Parts Attached 189 | . 9 8 30 18 8 8 1 22 10 8 19 15 14 19 Power 26 | . 2 1 5 2 . 1 1 4 2 1 1 2 1 3 Engine 7 | . 2 1 3 . . . 1 . . . . . . . Core 10 | . . . 2 2 . 1 . 3 2 . . . . . Reactor 9 | . . . . . . . . 1 . 1 1 2 1 3 Propulsion 38 | . 2 3 6 7 4 3 . 5 . 3 5 . . . Treads 9 | . 2 3 4 . . . . . . . . . . . Leg . | . . . . . . . . . . . . . . . Wheel 3 | . . . 2 1 . . . . . . . . . . Hover . | . . . . . . . . . . . . . . . Flight 26 | . . . . 6 4 3 . 5 . 3 5 . . . Utility 77 | . 1 3 8 6 2 3 . 12 4 4 7 6 5 16 Device 33 | . . . 2 1 1 1 . 5 2 1 4 4 1 11 Storage 3 | . 1 . . 1 . . . . . . . . . 1 Processor 14 | . . . 1 . . 1 . 4 . . . . 4 4 Hackware 7 | . . 1 1 1 . . . 1 . 1 1 1 . . Protection 19 | . . 2 4 3 1 1 . 2 1 2 2 1 . . Artifact 1 | . . . . . . . . . 1 . . . . . Weapon 48 | . 4 1 11 3 2 1 . 1 4 . 6 7 8 . Energy Gun 24 | . 4 1 1 3 1 1 . . . . . 6 7 . Energy Cannon 5 | . . . 4 . . . . . . . 1 . . . Ballistic Gun . | . . . . . . . . . . . . . . . Ballistic Cannon 7 | . . . 6 . . . . . . . 1 . . . Launcher 5 | . . . . . . . . . 2 . 1 1 1 . Special Weapon . | . . . . . . . . . . . . . . . Impact Weapon . | . . . . . . . . . . . . . . . Slashing Weapon 1 | . . . . . 1 . . . . . . . . . Piercing Weapon 6 | . . . . . . . . 1 2 . 3 . . . Special Melee Weapon . | . . . . . . . . . . . . . . . Unidentified Prototypes 33 | . 2 . . 3 2 . . 3 3 1 8 1 1 9 Corrupted Parts 2 | . . 1 1 . . . . . . . . . . . System Corruption 3 | . . 2 1 . . . . . . . . . . . Parts Lost 22 | . . 1 13 1 . 1 . 1 2 . . 1 . 2 Power 6 | . . . . 1 . 1 . 1 2 . . 1 . . Propulsion 5 | . . . 5 . . . . . . . . . . . Utility 6 | . . . 4 . . . . . . . . . . 2 Weapon 5 | . . 1 4 . . . . . . . . . . . Highest Loss Streak 6 | . . 1 6 1 . 1 . 1 2 . . 1 . 1 To Critical Strikes . | . . . . . . . . . . . . . . . Average Slot Usage (%) 81 | . 85 78 83 86 92 94 89 86 90 78 77 76 67 77 Engine 4 | . 14 11 7 2 . . 10 . . . 4 5 . . Core 1 | . . . . 4 6 4 . 7 8 . . . . . Reactor 1 | . . . . . . . . . . 4 1 2 9 9 Treads 8 | . 16 27 25 3 . . . . . . . . . . Leg 1 | . 12 . . . . . . . . . . 1 9 9 Flight 12 | . . . . 28 39 35 31 23 23 20 13 10 . . Device 9 | . . . 6 7 7 11 10 12 14 13 10 12 18 16 Storage 5 | . 14 11 5 3 6 5 5 4 4 4 4 3 . . Processor 4 | . . . . . . 4 5 7 9 8 8 6 5 15 Hackware 9 | . . . 9 12 13 11 10 13 14 13 20 17 . . Protection 6 | . . 6 8 9 6 9 10 9 9 8 7 7 . . Energy Gun 10 | . 27 21 7 4 11 1 . . . . . 4 26 27 Peak Build Rating 242 | . 13 16 31 55 69 75 71 104 112 107 143 216 234 242 Average Rating 91 | . 11 13 20 44 59 69 70 94 103 100 121 144 226 235 On Entrance 78 | 6 6 13 16 31 54 64 65 71 103 93 107 132 195 227 Naked Turns . | . . . . . . . . . . . . . . . Heaviest Build 107 | 14 94 100 107 31 35 36 31 41 36 37 38 51 64 64 Greatest Support 90 | 20 40 60 80 32 36 36 39 43 37 45 46 70 70 90 Greatest Overweight (x) 10 | . 2 2 2 10 . . . 1 . . 1 1 . . Average Overweight (x) . | . . 1 . . . . . . . . . . . . Largest Inventory Capacity 25 | . 25 25 25 10 10 10 10 10 10 10 10 10 5 5 Average Capacity 12 | . 17 25 17 7 10 10 10 10 10 10 10 9 5 5 Most Carried 10 | . 8 9 6 7 9 10 10 10 10 9 10 10 5 4 Average Carried 6 | . 4 6 4 5 6 9 10 9 9 8 9 8 2 3 Final Capacity 25 | 8 25 25 5 10 10 10 10 10 10 10 10 5 5 5 Final Carried 10 | 6 6 5 4 7 9 10 10 10 10 9 10 5 3 2 Class Distribution -------------------- 18% | Mutant 17% | Hacker-Sprinter 16% | Wizard-Scout 15% | Alien-Sigix 14% | Scavenger-Mutant 13% | Hacker-Scout Dominant Class ---------------- Mutant | -10/Materials Mutant | -9/Materials Scavenger-Mutant | -8/Materials Hacker-Sprinter | -7/Factory Hacker-Sprinter | -6/Factory Hacker-Sprinter | -5/Factory Hacker-Sprinter | -4/Factory Hacker-Scout | -3/Research Hacker-Scout | -3/Quarantine Hacker-Scout | -2/Research Wizard-Scout | -2/Testing Wizard-Scout | -2/Section 7 Alien-Sigix | -1/Access Alien-Sigix | -1/Command Resources | -11 -10 -9 -8 -7 -6 -5 -4 -3 -3 -2 -2 -2 -1 -1 ----------- Run | Yrd Mat Mat Mat Fac Fac Fac Fac Res Qua Res Tes Sec Acc Com Matter Collected 2715 | 168 110 58 690 . 333 72 16 208 106 . 121 223 266 344 Remotely . | . . . . . . . . . . . . . . . Salvage Created 6202 | . 135 611 929 100 262 62 37 248 172 . 118 283 660 2585 Parts 344 | . 11 47 62 3 11 7 6 17 13 . 9 13 30 115 Haulers Intercepted 1 | . . . 1 . . . . . . . . . . . Recyclers Shooed 5 | . 1 1 1 . . . . . . . . . 1 1 Parts Field Recycled . | . . . . . . . . . . . . . . . Retrieved Matter . | . . . . . . . . . . . . . . . Parts Self-Destructed . | . . . . . . . . . . . . . . . Prevented . | . . . . . . . . . . . . . . . Kills | -11 -10 -9 -8 -7 -6 -5 -4 -3 -3 -2 -2 -2 -1 -1 ------- Run | Yrd Mat Mat Mat Fac Fac Fac Fac Res Qua Res Tes Sec Acc Com Combat Hostiles Destroyed 75 | . 4 12 19 . . . . 2 5 . . 5 6 22 Melee 3 | . . . . . . . . 2 1 . . . . . Guns 45 | . 2 10 4 . . . . . . . . 1 6 22 Cannons 13 | . . . 13 . . . . . . . . . . . AOE 13 | . 2 1 2 . . . . . 4 . . 4 . . Classes Destroyed 18 | . 4 5 3 . . . . 1 . . . 1 1 3 Worker 7 | . . 1 . . 2 . 1 . 1 . 1 . 1 . Builder 8 | . 1 . 2 . 2 . . 1 . . . 2 . . Hauler 1 | . . . 1 . . . . . . . . . . . Recycler 7 | . . . 3 . 1 . . . . . . 1 2 . Mechanic 1 | . . . . . . . . 1 . . . . . . Operator 8 | . 1 2 2 . . 1 1 . . . . . 1 . Watcher 11 | . . 1 . 2 1 1 . 2 1 . 2 . . 1 Swarmer 24 | . 3 3 3 . . . . 2 5 . . 4 4 . Grunt 22 | . 1 4 10 . . . . . . . . . . 7 Brawler 3 | . . 1 . . . . . . . . . . . 2 Duelist 2 | . . 1 . . . . . . . . . . . 1 Sentry 10 | . . 3 5 . . . . . . . . . . 2 Hunter 3 | . . . . . . . . . . . . 1 2 . Programmer 3 | . . . . . . . . . . . . . . 3 Heavy 1 | . . . 1 . . . . . . . . . . . M Guard 2 | . . . . . . . . . . . . . . 2 Combat Programmer 2 | . . . . . . . . . . . . . . 2 Striker 1 | . . . . . . . . . . . . . . 1 Alpha 7 1 | . . . . . . . . . . . . . . 1 Assembled 3 | . . . . . . . . . . . . . 3 . Best Kill Streak 8 | . 2 4 5 2 4 2 1 2 4 . 2 7 6 8 Combat Bots Only 8 | . 2 3 5 . . . . 2 4 . . 4 5 8 Max Kills in Single Turn 4 | . 1 2 1 1 3 1 1 1 4 . 1 4 4 2 Gunslinging 2 | . . . . . . . . . . . . . 2 . Exploded 4 | . 1 1 1 . . . . . 4 . . 2 . . Melee 1 | . . . . . . . . 1 1 . . . . . Uniques/NPCs Destroyed 1 | . . . . . . . . . . . . . . 1 MAIN.C Shell (-1/Command) Combat | -11 -10 -9 -8 -7 -6 -5 -4 -3 -3 -2 -2 -2 -1 -1 -------- Run | Yrd Mat Mat Mat Fac Fac Fac Fac Res Qua Res Tes Sec Acc Com Hostile Shots Fired 1348 | . 12 43 149 32 2 6 10 18 50 32 8 158 356 472 Missed 430 | . 3 16 37 21 2 4 4 10 26 19 5 72 99 112 Intercepted 20 | . . . . . . . . . . . . . . 20 Damage Taken 10156 | . 95 413 2018 290 24 291 53 272 471 274 124 936 858 4037 Core 2410 | . 19 33 466 . 12 73 . 29 99 48 . 148 263 1220 Absorbed by Shields 4737 | . . . 74 . . . . . . . . 399 1814 2450 Redirected to Shielding 101 | . . . . . . . 17 14 27 . . 43 . . Ignored by Resistances 10177 | . . . . . . . . . . . . 751 2777 6649 Regen/Repaired (Parts) 935 | . . . . 90 17 . . . . 499 153 176 . . Core Remaining (%) 86 | 100 92 91 15 100 98 92 100 . 90 . . 84 . . Volleys Fired 304 | . 14 28 70 10 10 3 . . 1 . . 39 34 95 Largest 3 | . 2 2 2 1 2 1 . . 1 . . 2 3 3 Hottest 300 | . 90 90 160 45 95 50 . . 36 . . 200 300 300 Shots Fired 660 | . 28 55 137 10 20 3 . . 1 . . 41 86 279 Gun 553 | . 28 55 33 10 20 3 . . . . . 39 86 279 Cannon 104 | . . . 104 . . . . . . . . . . . Launcher 3 | . . . . . . . . . 1 . . 2 . . Special . | . . . . . . . . . . . . . . . Kinetic 86 | . . . 86 . . . . . . . . . . . Thermal 45 | . . . 18 . . . . . . . . 27 . . Explosive 3 | . . . . . . . . . 1 . . 2 . . Electromagnetic 149 | . 28 55 33 10 20 3 . . . . . . . . Slashing 377 | . . . . . . . . . . . . 12 86 279 Robot Hit Streak 63 | . 5 9 31 11 7 2 . . 3 . . 4 11 63 Robot Miss Streak 7 | . 6 3 4 5 7 2 . . . . . 2 5 5 Penetration Max 1 | . . . . . . . . . . . . . 1 1 Secondary Targets 9 | . . 2 . . . . . . . . . . 3 4 Max Gunslinging Chain 2 | . . 1 . . . . . . . . . . 2 1 Shots Hit Robots 461 | . 14 46 93 7 16 5 3 8 4 . 6 2 44 213 Core Hits 219 | . 7 29 49 3 9 1 2 7 13 . 1 8 16 74 Critical Kills . | . . . . . . . . . . . . . . . Critical Parts Destroyed . | . . . . . . . . . . . . . . . Critical Strikes 12 | . . . 1 . . . . 1 . . 1 . . 9 Blast 1 | . . . 1 . . . . . . . . . . . Sever 9 | . . . . . . . . . . . . . . 9 Impale 2 | . . . . . . . . 1 . . 1 . . . Melee Attacks 98 | . . . . . 3 8 8 30 16 10 19 4 . . Impact . | . . . . . . . . . . . . . . . Slashing 29 | . . . . . 3 8 8 10 . . . . . . Piercing 69 | . . . . . . . . 20 16 10 19 4 . . Sneak Attacks 6 | . . . . . . . 1 2 2 . 1 . . . Combat Hostiles 1 | . . . . . . . . . 1 . . . . . Follow-up Attacks . | . . . . . . . . . . . . . . . Damage Inflicted 26282 | . 297 916 2384 187 590 188 153 388 628 . 392 916 3196 16047 Guns 21096 | . 172 734 453 142 311 52 . . . . . 161 3196 15875 Cannons 1778 | . . . 1778 . . . . . . . . . . . Explosions 1807 | . 116 168 128 45 279 . . . 320 . . 751 . . Melee 1377 | . . . . . . 136 153 388 308 . 392 . . . Ramming 224 | . 9 14 25 . . . . . . . . 4 . 172 Kinetic 1474 | . . . 1474 . . . . . . . . . . . Thermal 1040 | . 116 168 432 45 279 . . . . . . . . . Explosive 1071 | . . . . . . . . . 320 . . 751 . . Electromagnetic 1864 | . 172 734 453 142 311 52 . . . . . . . . Impact . | . . . . . . . . . . . . . . . Slashing 19704 | . . . . . . 136 153 183 . . . 161 3196 15875 Piercing 905 | . . . . . . . . 205 308 . 392 . . . Highest Corruption 14 | . 7 2 1 6 1 1 . 1 5 . . 3 2 14 Average Corruption 2 | . 3 2 1 5 1 1 . 1 2 . . 3 2 4 Corruption Purged . | . . . . . . . . . . . . . . . Corruption Blocked . | . . . . . . . . . . . . . . . Effects 46 | . 2 . 3 8 3 . . 2 3 . . 8 . 17 Message Errors 13 | . . . 1 3 . . . . 2 . . 2 . 5 Matter Fused 8 | . 1 . . 2 . . . 2 . . . 1 . 2 Heat Flow Errors 6 | . . . . 2 1 . . . 1 . . 1 . 1 Energy Discharges 6 | . . . . . 1 . . . . . . 1 . 4 Parts Rejected 2 | . . . . 1 . . . . . . . . . 1 Data Loss (minor) 4 | . . . 1 . . . . . . . . 2 . 1 Data Loss (major) 4 | . 1 . 1 . 1 . . . . . . . . 1 Weapon Failures 3 | . . . . . . . . . . . . 1 . 2 Overload Shots . | . . . . . . . . . . . . . . . Overflow Damage 544 | . 4 . 74 24 29 36 1 26 . . 251 90 . 9 Projectiles 36 | . . . 36 . . . . . . . . . . . Explosions 185 | . 4 . 38 24 29 . . . . . . 90 . . Melee 323 | . . . . . . 36 1 26 . . 251 . . 9 Knockbacks 14 | . . . 14 . . . . . . . . . . . Impact . | . . . . . . . . . . . . . . . Kinetic 14 | . . . 14 . . . . . . . . . . . Secondary . | . . . . . . . . . . . . . . . Self-Inflicted Damage 150 | . . 9 116 . 25 . . . . . . . . . Shots 5 | . . 1 3 . 1 . . . . . . . . . Rammed 10 | . 1 4 5 . . . . . . . . . . . Targets Rammed 23 | . 1 4 5 . . . . . . . . 1 . 12 Kicked 13 | . . . . . . . . . . . . 1 . 12 Crushed . | . . . . . . . . . . . . . . . Highest Temperature 396 | . 165 191 312 205 156 1 1 . 70 4 . 257 148 396 Average Temperature 81 | . 52 68 100 96 23 1 1 . 43 4 . 48 64 94 Received Heat Transfer 1372 | . 6 129 581 42 . . . 36 78 . . 118 . 382 Effects 3 | . . . 3 . . . . . . . . . . . Energy Bleed 1 | . . . 1 . . . . . . . . . . . Interference 2 | . . . 2 . . . . . . . . . . . Siege Activations . | . . . . . . . . . . . . . . . Robots Corrupted 1 | . . 1 . . . . . . . . . . . . Combat Hostiles 1 | . . 1 . . . . . . . . . . . . Parts Fried 13 | . 1 6 3 1 2 . . . . . . . . . Impact Corruptions 1 | . . . . . . . . . . . . . . 1 Robots Melted . | . . . . . . . . . . . . . . . Combat Hostiles . | . . . . . . . . . . . . . . . Parts Melted 2 | . . . 1 . . . . . . . . . . 1 Heat Transferred 1350 | . 100 200 750 50 250 . . . . . . . . . Parts Sabotaged 1 | . . . . . . . . . . . . 1 . . Parts Stolen . | . . . . . . . . . . . . . . . Parts Stripped . | . . . . . . . . . . . . . . . Power Chain Reactions 14 | . 3 5 2 1 3 . . . . . . . . . Alert | -11 -10 -9 -8 -7 -6 -5 -4 -3 -3 -2 -2 -2 -1 -1 ------- Run | Yrd Mat Mat Mat Fac Fac Fac Fac Res Qua Res Tes Sec Acc Com Peak Influence 2095 | . 184 269 426 466 275 259 86 135 382 421 260 1947 2095 1946 Initial 1340 | . . 77 58 193 137 122 9 18 48 214 245 39 1176 1340 Average 382 | . 116 126 197 252 179 152 40 54 184 305 53 453 1489 1691 Maximum Alert Level 5 | . . 1 2 2 1 1 . . 1 2 1 5 5 5 Low Security (%) 58 | . 100 95 60 60 55 85 100 100 66 . 90 19 . . Level 1 21 | . . 4 31 22 44 14 . . 33 91 9 50 . . Level 2 4 | . . . 7 16 . . . . . 8 . 19 . . Level 3 . | . . . . . . . . . . . . . . . Level 4 6 | . . . . . . . . . . . . . 59 30 Level 5 5 | . . . . . . . . . . . . . . 69 High Security . | . . . . . . . . . . . . . . . Max Security 3 | . . . . . . . . . . . . 11 40 . Squads Dispatched 51 | . 1 2 3 4 3 4 . . 4 2 . 11 12 5 Investigation 10 | . . . 1 3 2 2 . . 1 1 . . . . Extermination 6 | . . . . 1 . 1 . . 1 . . 2 . 1 Reinforcement 13 | . 1 2 2 . 1 1 . . 2 1 . 2 . 1 Assault 22 | . . . . . . . . . . . . 7 12 3 Garrison . | . . . . . . . . . . . . . . . Intercept . | . . . . . . . . . . . . . . . Searches Triggered 2 | . . . . . . . . . . . . 2 . . Construction Impeded 1 | . . . . . . . . . . . . 1 . . Haulers Reinforced . | . . . . . . . . . . . . . . . Active Scanning Responses . | . . . . . . . . . . . . . . . Cargo Convoy Interrupts . | . . . . . . . . . . . . . . . Stealth | -11 -10 -9 -8 -7 -6 -5 -4 -3 -3 -2 -2 -2 -1 -1 --------- Run | Yrd Mat Mat Mat Fac Fac Fac Fac Res Qua Res Tes Sec Acc Com Distress Signals 16 | . . 1 2 . 1 . . 3 3 1 . 3 . 2 Communications Jammed . | . . . . . . . . . . . . . . . Distress Signals . | . . . . . . . . . . . . . . . Times Spotted 361 | . 8 14 31 15 7 11 3 13 33 13 7 91 18 97 Peak Tracking Total 107 | . 3 3 6 9 4 5 2 7 9 9 3 45 21 107 Tactical Retreats 48 | . 1 . 4 3 1 2 1 4 6 3 . 16 5 2 Traps | -11 -10 -9 -8 -7 -6 -5 -4 -3 -3 -2 -2 -2 -1 -1 ------- Run | Yrd Mat Mat Mat Fac Fac Fac Fac Res Qua Res Tes Sec Acc Com Traps Triggered 19 | . 5 . 1 2 . 3 . 1 1 . . 1 4 1 Indirectly . | . . . . . . . . . . . . . . . Trap Hack Attempts . | . . . . . . . . . . . . . . . Triggered . | . . . . . . . . . . . . . . . Disarmed . | . . . . . . . . . . . . . . . Reprogrammed . | . . . . . . . . . . . . . . . Reused . | . . . . . . . . . . . . . . . Traps Extracted . | . . . . . . . . . . . . . . . Installed . | . . . . . . . . . . . . . . . Triggered . | . . . . . . . . . . . . . . . Machines | -11 -10 -9 -8 -7 -6 -5 -4 -3 -3 -2 -2 -2 -1 -1 ---------- Run | Yrd Mat Mat Mat Fac Fac Fac Fac Res Qua Res Tes Sec Acc Com Machines Disabled 40 | . 1 1 3 2 2 . 1 . 4 1 6 9 5 5 Max in Single Turn 2 | . 1 1 1 2 2 . 1 . 1 1 1 2 2 1 Garrison Access 8 | . . . . 1 2 1 . 1 1 . 1 1 . . Machines Repaired . | . . . . . . . . . . . . . . . Machines Dismantled . | . . . . . . . . . . . . . . . Machines Sabotaged . | . . . . . . . . . . . . . . . Overloaded Fab Kills . | . . . . . . . . . . . . . . . Hacking | -11 -10 -9 -8 -7 -6 -5 -4 -3 -3 -2 -2 -2 -1 -1 --------- Run | Yrd Mat Mat Mat Fac Fac Fac Fac Res Qua Res Tes Sec Acc Com Machines Accessed 72 | . . . 1 8 10 11 4 6 7 6 10 7 1 1 Terminals 47 | . . . 1 4 5 8 3 4 5 4 6 6 . 1 Fabricators 7 | . . . . 2 2 1 . . . . 2 . . . Repair Stations 7 | . . . . 1 1 . 1 1 1 1 1 . . . Recycling Units . | . . . . . . . . . . . . . . . Scanalyzers 1 | . . . . . . 1 . . . . . . . . Garrison Access 10 | . . . . 1 2 1 . 1 1 1 1 1 1 . Total Hacks 161 | . . . 3 17 20 21 9 10 21 14 22 22 1 1 Successful 91 | . . . 1 8 14 11 5 5 8 5 15 18 . 1 Failed 70 | . . . 2 9 6 10 4 5 13 9 7 4 1 . Catastrophic 15 | . . . . 2 . 3 2 1 3 3 . 1 . . Database Lockouts . | . . . . . . . . . . . . . . . Manual 64 | . . . 3 12 7 6 5 . 11 5 8 7 . . Terminals 114 | . . . 3 9 14 16 6 8 14 9 13 21 . 1 Fabricators 13 | . . . . 4 2 2 . . . . 5 . . . Repair Stations 19 | . . . . 2 2 . 3 1 5 3 3 . . . Recycling Units . | . . . . . . . . . . . . . . . Scanalyzers 2 | . . . . . . 2 . . . . . . . . Garrison Access 13 | . . . . 2 2 1 . 1 2 2 1 1 1 . Terminal Hacks 46 | . . . . 1 6 5 2 3 4 3 7 14 . 1 Record 3 | . . . . . . . . . . . . 3 . . Part Schematic 1 | . . . . . 1 . . . . . . . . . Prototype ID Bank 2 | . . . . . 1 . . . . . . 1 . . Open Door 3 | . . . . . . . . . . . . 2 . 1 Level Access Points 3 | . . . . . 1 1 1 . . . . . . . Branch Access Points 4 | . . . . 1 . 1 . 1 . 1 . . . . Emergency Access Points 1 | . . . . . . . . . . . 1 . . . Terminal Index 2 | . . . . . . . . . . 1 . 1 . . Fabricator Index 1 | . . . . . . . . 1 . . . . . . Garrison Index 1 | . . . . . . . . . . . . 1 . . Unreport Threat 14 | . . . . . 3 3 1 1 1 . 4 1 . . Locate Traps 3 | . . . . . . . . . . . 1 2 . . Recall Investigation 1 | . . . . . . . . . 1 . . . . . Recall Reinforcements 2 | . . . . . . . . . 1 1 . . . . Hauler Manifests 1 | . . . . . . . . . . . . 1 . . Zone Layout 4 | . . . . . . . . . 1 . 1 2 . . Fabricator Hacks 4 | . . . . 1 . 2 . . . . 1 . . . Network Status 1 | . . . . . . . . . . . 1 . . . Load Schematic 1 | . . . . . . 1 . . . . . . . . Build 2 | . . . . 1 . 1 . . . . . . . . Repair Station Hacks 13 | . . . . 2 2 . 1 1 2 2 3 . . . Scan Component 5 | . . . . 1 1 . . . 1 1 1 . . . Repair 4 | . . . . 1 1 . . . . 1 1 . . . Refit 4 | . . . . . . . 1 1 1 . 1 . . . Recycling Unit Hacks . | . . . . . . . . . . . . . . . Scanalyzer 2 | . . . . . . 2 . . . . . . . . Insert Component 1 | . . . . . . 1 . . . . . . . . Analyze 1 | . . . . . . 1 . . . . . . . . Garrison Access Hacks 8 | . . . . 1 2 1 . 1 1 . 1 1 . . Seal Access 8 | . . . . 1 2 1 . 1 1 . 1 1 . . Unauthorized Hacks 18 | . . . 1 3 4 1 2 . 1 . 3 3 . . Terminals 14 | . . . 1 1 2 1 2 . 1 . 3 3 . . Track 1 | . . . . . . . . . . . . 1 . . Assimilate 3 | . . . . . . . 1 . 1 . 1 . . . Botnet 8 | . . . 1 1 2 1 1 . . . 1 1 . . Operators 2 | . . . . . . . . . . . 1 1 . . Fabricators 4 | . . . . 2 2 . . . . . . . . . Fabnet 4 | . . . . 2 2 . . . . . . . . . Repair Stations . | . . . . . . . . . . . . . . . Recycling Units . | . . . . . . . . . . . . . . . Scanalyzers . | . . . . . . . . . . . . . . . Garrison Access . | . . . . . . . . . . . . . . . Data Cores Recovered 3 | . . . 1 . . 1 1 . . . . . . . Used 1 | . . . . . . 1 . . . . . . . . Hacking Detections 57 | . . . . 7 6 9 4 5 7 5 9 4 1 . Full Trace Events 8 | . . . . 2 2 2 . . 1 1 . . . . Feedback Events 3 | . . . . 1 1 . . . 1 . . . . . Corruption 3 | . . . . 1 1 . . . 1 . . . . . Feedback Blocked 1 | . . . . . . . . . . 1 . . . . Robot Schematics Acquired . | . . . . . . . . . . . . . . . Robots Built . | . . . . . . . . . . . . . . . Authchips . | . . . . . . . . . . . . . . . Time . | . . . . . . . . . . . . . . . Total Robot Build Rating . | . . . . . . . . . . . . . . . Part Schematics Acquired 2 | . . . . . 1 1 . . . . . . . . Parts Built 1 | . . . . . . 1 . . . . . . . . Authchips . | . . . . . . . . . . . . . . . Time 171 | . . . . 95 . 76 . . . . . . . . Total Part Build Rating 5 | . . . . . . 5 . . . . . . . . Parts Repaired 4 | . . . . 1 1 . . . . 1 1 . . . Time 222 | . . . . 44 70 . . . . 54 54 . . . Parts Recycled . | . . . . . . . . . . . . . . . Recycled Matter . | . . . . . . . . . . . . . . . Retrieved Matter . | . . . . . . . . . . . . . . . Retrieved Components . | . . . . . . . . . . . . . . . Parts Scanalyzed 1 | . . . . . . 1 . . . . . . . . Part Schematics Acquired 1 | . . . . . . 1 . . . . . . . . Parts Damaged . | . . . . . . . . . . . . . . . Bothacking | -11 -10 -9 -8 -7 -6 -5 -4 -3 -3 -2 -2 -2 -1 -1 ------------ Run | Yrd Mat Mat Mat Fac Fac Fac Fac Res Qua Res Tes Sec Acc Com Used RIF Installer . | . . . . . . . . . . . . . . . Robots Hacked . | . . . . . . . . . . . . . . . Non-combat . | . . . . . . . . . . . . . . . Combat . | . . . . . . . . . . . . . . . Robot Hacks Applied . | . . . . . . . . . . . . . . . Relay Couplers Released . | . . . . . . . . . . . . . . . Fabnet Peak Effective % 8 | . . . . . 6 8 2 . . . . . . . Robots Rewired 2 | . . . . . 1 . 1 . . . . . . . Allies Hacked 2 | . . . . . . . . 1 1 . . . . . Hacks Repelled . | . . . . . . . . . . . . . . . Allies | -11 -10 -9 -8 -7 -6 -5 -4 -3 -3 -2 -2 -2 -1 -1 -------- Run | Yrd Mat Mat Mat Fac Fac Fac Fac Res Qua Res Tes Sec Acc Com Total Allies 52 | . . . . . 1 . 2 . 1 . 1 . 21 26 Largest Group 7 | . . . . . 1 . 2 1 1 . 1 . 7 5 Highest-Rated Group 101 | . . . . . 32 . 73 26 10 . 45 . 101 73 Highest-Rated Ally 47 | . . . . . 32 . 47 26 10 . 45 . 15 15 Total Orders . | . . . . . . . . . . . . . . . Ally Attacks 19 | . . . . . 1 . . . . . . . 16 2 Total Damage 322 | . . . . . 28 . . . . . . . 269 25 Kills . | . . . . . . . . . . . . . . . Allies Corrupted . | . . . . . . . . . . . . . . . Allies Melted . | . . . . . . . . . . . . . . . Intel | -11 -10 -9 -8 -7 -6 -5 -4 -3 -3 -2 -2 -2 -1 -1 ------- Run | Yrd Mat Mat Mat Fac Fac Fac Fac Res Qua Res Tes Sec Acc Com Robot Analysis Total . | . . . . . . . . . . . . . . . Derelict Logs Recovered . | . . . . . . . . . . . . . . . Drone Launches . | . . . . . . . . . . . . . . . Drone Recoveries . | . . . . . . . . . . . . . . . Exploration | -11 -10 -9 -8 -7 -6 -5 -4 -3 -3 -2 -2 -2 -1 -1 ------------- Run | Yrd Mat Mat Mat Fac Fac Fac Fac Res Qua Res Tes Sec Acc Com Turns Passed 6770 | . 282 899 966 411 380 341 157 460 372 241 544 746 401 570 Spaces Moved 10697 | 1 101 288 386 804 1083 903 411 1236 1039 539 1040 1324 864 678 Core 64 | . . . 63 1 . . . . . . . . . . Treads 594 | . 44 288 262 . . . . . . . . . . . Legs 1830 | 1 57 . . . . . . . . . . 230 864 678 Wheels 140 | . . . 61 79 . . . . . . . . . . Hover . | . . . . . . . . . . . . . . . Flight 8069 | . . . . 724 1083 903 411 1236 1039 539 1040 1094 . . Fastest Speed 17 | 120 120 240 50 23 20 20 17 17 24 18 25 30 30 30 Average Speed 41 | 120 207 273 173 32 20 20 21 23 24 24 34 35 30 30 Slowest Speed 550 | 120 320 320 240 550 23 26 26 98 24 25 117 115 30 30 Overloaded Moves 45 | . . . . . . . 7 15 . 23 . . . . Propulsion Burnouts . | . . . . . . . . . . . . . . . Robots Hopped 61 | . . . . 6 17 5 4 7 9 7 3 3 . . Cave-ins Triggered . | . . . . . . . . . . . . . . . Exploration Rate (%) 34 | 2 22 29 30 21 35 27 10 35 80 18 81 78 25 25 Regions Visited 14 Branch Regions 4 Pre-discovered Areas . | . . . . . . . . . . . . . . . Known Exits Taken 7 | . . . . . 1 1 1 1 1 1 1 . . . Unknown Exits Taken 7 | 1 1 1 1 1 . . . . . . . 1 1 . Scrap Searched . | . . . . . . . . . . . . . . . Spaces Dug 93 | . . . . . 3 5 3 16 4 4 4 13 15 26 Terrain Destroyed 341 | . 12 13 52 5 27 5 3 16 15 4 4 30 71 84 Melee 43 | . . . . . 3 5 3 16 4 4 4 4 . . Projectile 188 | . . . 30 . . . . . . . . 11 63 84 AOE 110 | . 12 13 22 5 24 . . . 11 . . 15 8 . Terrain Rammed . | . . . . . . . . . . . . . . . Walls Destroyed . | . . . . . . . . . . . . . . . Machines Disabled . | . . . . . . . . . . . . . . . Actions | -11 -10 -9 -8 -7 -6 -5 -4 -3 -3 -2 -2 -2 -1 -1 --------- Run | Yrd Mat Mat Mat Fac Fac Fac Fac Res Qua Res Tes Sec Acc Com Total 12346 | . 147 338 539 933 1199 1042 461 1345 1130 623 1192 1555 951 891 Wait 901 | . 8 5 29 91 104 115 42 45 54 71 94 144 32 67 Move 10564 | . 100 287 385 791 1049 892 402 1221 1020 525 1033 1318 863 678 Hop 58 | . . . . 6 16 5 4 7 9 6 3 2 . . Pick Up 44 | . 6 1 7 6 4 6 . 3 3 . 1 5 . 2 Fast Attach 125 | . 3 5 19 13 2 1 1 14 9 4 18 11 10 15 Attach 43 | . 3 1 9 3 2 2 . 4 1 2 . 8 4 4 Detach 22 | . . 1 1 . . . . 2 1 1 2 8 3 3 Swap 29 | . 3 2 2 2 4 5 . 4 1 2 1 1 1 1 Drop 131 | . 9 4 12 11 3 5 2 15 15 2 21 14 4 14 Fire 304 | . 14 28 70 10 10 3 . . 1 . . 39 34 95 Melee 98 | . . . . . 3 8 8 30 16 10 19 4 . . Ram 4 | . . . 4 . . . . . . . . . . . Kick 13 | . . . . . . . . . . . . 1 . 12 Crush 6 | . 1 4 1 . . . . . . . . . . . Escape Stasis . | . . . . . . . . . . . . . . . Rewire 4 | . . . . . 2 . 2 . . . . . . . Trap . | . . . . . . . . . . . . . . . Miscellaneous . | . . . . . . . . . . . . . . . Route ------- -11/Scrapyard -10/Materials -9/Materials -8/Materials -7/Factory (discovered 4 exits: *Fac / *Sto / Low x2) -6/Factory (discovered 5 exits: *Fac x4 / [*Low]) -5/Factory (discovered 8 exits: *Fac x4 / Upp x2 / *Ext x2) -4/Factory (discovered 4 exits: *Res x4) -3/Research (discovered 3 exits: *Res / *Qua x2) -3/Quarantine -2/Research (discovered 2 exits: *Tes x2) -2/Testing (discovered 2 exits: Acc / *Sec) -2/Section 7 -1/Access -1/Command (discovered 1 exit: [Sur]) History --------- Turn | Location | Event 1 | -11/Scrapyard | Discovered new exit (range 0) 1 | -11/Scrapyard | Entered Materials 183 | -10/Materials | Discovered new exit (range 15) 283 | -10/Materials | Entered another Materials area 283 | -9/Materials | Evolved 2 slots: Propulsion x1, Utility x1 314 | -9/Materials | Build established: Mutant 1062 | -9/Materials | Discovered new exit (range 15) 1182 | -9/Materials | Entered another Materials area 1182 | -8/Materials | Evolved 2 slots: Propulsion x1, Utility x1 1442 | -8/Materials | Lost 3 parts (1n1u1w) 1749 | -8/Materials | Build established: Scavenger-Mutant 1808 | -8/Materials | Core integrity fell below 50% 1836 | -8/Materials | Lost 6 parts (3n1u2w) 1883 | -8/Materials | Core integrity fell below 20% 2135 | -8/Materials | Discovered new exit (range 11) 2148 | -8/Materials | Entered Factory 2148 | -7/Factory | Evolved 2 slots: Propulsion x1, Utility x1 2364 | -7/Factory | Repaired Lyr. Light Armor Plating 2367 | -7/Factory | Discovered new exit (range 7) 2462 | -7/Factory | Discovered new exit (range 5) 2532 | -7/Factory | Identified exit to Storage 2532 | -7/Factory | Identified exit to Lower Caves 2535 | -7/Factory | Build established: Hacker-Sprinter 2559 | -7/Factory | Entered another Factory area 2559 | -6/Factory | Evolved 2 slots: Propulsion x1, Utility x1 2671 | -6/Factory | Repaired Imp. Cesium-ion Thruster? 2813 | -6/Factory | Identified exit to Factory 2838 | -6/Factory | Discovered new exit (range 5) 2939 | -6/Factory | Entered another Factory area 2939 | -5/Factory | Evolved 2 slots: Utility x2 3065 | -5/Factory | Identified exit to Upper Caves 3065 | -5/Factory | Identified exit to Extension 3071 | -5/Factory | Identified exit to Factory 3231 | -5/Factory | Fabricated Cld. Cesium-ion Thruster (x1) 3280 | -5/Factory | Entered another Factory area 3280 | -4/Factory | Evolved 2 slots: Power x1, Utility x1 3308 | -4/Factory | Spotted B-86 Titan 3336 | -4/Factory | Identified exit to Research 3437 | -4/Factory | Entered Research 3437 | -3/Research | Accompanied by 1 ally 3437 | -3/Research | Evolved 2 slots: Utility x2 3514 | -3/Research | Discovered new exit (range 9) 3516 | -3/Research | Identified exit to Research 3605 | -3/Research | Identified exit to Quarantine 3897 | -3/Research | Entered Quarantine 3911 | -3/Quarantine | Build established: Hacker-Scout 3923 | -3/Quarantine | Found Alien Artifact 3923 | -3/Quarantine | Identified Phase Redirector 3997 | -3/Quarantine | Found Prototype Launcher 3997 | -3/Quarantine | Identified Com. Tesla Bomb Launcher 4130 | -3/Quarantine | Found Alien Artifact 4130 | -3/Quarantine | Identified Core Reset Matrix 4130 | -3/Quarantine | Used Core Reset Matrix 4134 | -3/Quarantine | Detected hypermatrix surge 4134 | -3/Quarantine | Sensed 16 artifacts in vicinity 4143 | -3/Quarantine | Found Subatomic Replicator 4152 | -3/Quarantine | Discovered exit to Research (range 19) 4226 | -3/Quarantine | Found Hpw. Transdimensional Reconstructor 4230 | -3/Quarantine | Found Hpw. Transdimensional Reconstructor 4269 | -3/Quarantine | Entered Research 4269 | -2/Research | Evolved 2 slots: Utility x2 4351 | -2/Research | Repaired Centrium Medium Armor Plating 4417 | -2/Research | Spotted B-90 Cyclops 4435 | -2/Research | Identified exit to Testing 4510 | -2/Research | Entered Testing 4547 | -2/Testing | Found Prototype Hackware 4547 | -2/Testing | Identified System Mapper 4572 | -2/Testing | Spotted PL-WIB6L17HSM 4734 | -2/Testing | Found Prototype Ballistic Cannon 4734 | -2/Testing | Identified Omega Cannon 4750 | -2/Testing | Found Prototype Device 4750 | -2/Testing | Identified AEGIS Remote Shield 4809 | -2/Testing | Build established: Wizard-Scout 4825 | -2/Testing | Repaired Centrium Medium Armor Plating 4829 | -2/Testing | Found Prototype Launcher 4829 | -2/Testing | Identified Gui. Micro-nuke Launcher 4954 | -2/Testing | Discovered new exit (range 20) 4963 | -2/Testing | Found Prototype Energy Cannon 4963 | -2/Testing | Identified Disintegrator 4992 | -2/Testing | Found Prototype Device 4992 | -2/Testing | Identified Exp. Hardlight Generator 5025 | -2/Testing | Spotted Fortress 5052 | -2/Testing | Discovered new exit (range 6) 5053 | -2/Testing | Identified exit to Section 7 5054 | -2/Testing | Entered Section 7 5055 | -2/Section 7 | Sensed 19 artifacts in vicinity 5273 | -2/Section 7 | Found Integrity Redistributor 5273 | -2/Section 7 | Used Integrity Redistributor, redistributed integrity from core (-33) 5304 | -2/Section 7 | Search patrols dispatched 5384 | -2/Section 7 | Spotted S7 Guard 5458 | -2/Section 7 | Spotted Executioner 5462 | -2/Section 7 | Spotted Executioner 5548 | -2/Section 7 | Found Sigix Sheargun 5554 | -2/Section 7 | Search patrols dispatched 5566 | -2/Section 7 | Spotted Striker 5566 | -2/Section 7 | Spotted Striker 5592 | -2/Section 7 | Spotted B-99 Colossus 5610 | -2/Section 7 | Found Integrated Reactor 5610 | -2/Section 7 | Installed Integrated Reactor, increased core energy generation (+10) 5612 | -2/Section 7 | Found Integrated Reactor 5612 | -2/Section 7 | Installed Integrated Reactor, increased core energy generation (+10) 5614 | -2/Section 7 | Found Integrated Reactor 5614 | -2/Section 7 | Installed Integrated Reactor, increased core energy generation (+10) 5627 | -2/Section 7 | Found LRC Inertial Stabilizer 5627 | -2/Section 7 | Installed LRC Inertial Stabilizer, increased mass support (+10) 5682 | -2/Section 7 | Integrated with Sigix Exoskeleton 5770 | -2/Section 7 | Spotted Executioner 5770 | -2/Section 7 | Spotted Executioner 5779 | -2/Section 7 | Found Prototype Device 5779 | -2/Section 7 | Identified Exp. Thermal Shield 5787 | -2/Section 7 | Discovered new exit (range 18) 5800 | -2/Section 7 | Entered Access 5800 | -1/Access | Evolved 2 slots: Utility x1, Weapon x1 5801 | -1/Access | Sensed 1 artifact in vicinity 5801 | -1/Access | Used Subatomic Replicator to replicate Sigix Sheargun 5805 | -1/Access | Emitted hypermatrix ping 5810 | -1/Access | Assembled emerged from beneath the floor 5923 | -1/Access | Assembled emerged from beneath the floor 5983 | -1/Access | Build established: Alien-Sigix 6066 | -1/Access | Assembled emerged from beneath the floor 6101 | -1/Access | Discovered new exit (range 18) 6108 | -1/Access | Lost 4 allies 6114 | -1/Access | Found Prototype Launcher 6114 | -1/Access | Identified Enh. Gamma Bomb Array 6128 | -1/Access | Spotted B-99 Colossus 6138 | -1/Access | Spotted B-99 Colossus 6194 | -1/Access | Sigix Exoskeleton integrity reduced to 80% 6201 | -1/Access | Entered Command 6206 | -1/Command | Emitted hypermatrix ping 6211 | -1/Command | Assembled emerged from beneath the floor 6235 | -1/Command | Assembled emerged from beneath the floor 6275 | -1/Command | Spotted Striker 6278 | -1/Command | Spotted Alpha 7 6301 | -1/Command | Destroyed Striker 6315 | -1/Command | Destroyed Alpha 7 6319 | -1/Command | Found Prototype Processor 6319 | -1/Command | Identified Exp. Targeting Computer 6322 | -1/Command | Found Prototype Device 6322 | -1/Command | Identified Exp. ECM Suite 6349 | -1/Command | Spotted Combat Programmer 6350 | -1/Command | Spotted Combat Programmer 6350 | -1/Command | Spotted M Guard 6371 | -1/Command | Destroyed Combat Programmer 6376 | -1/Command | Destroyed Combat Programmer 6392 | -1/Command | Spotted M Guard 6448 | -1/Command | Destroyed M Guard 6451 | -1/Command | First assault squad dispatched 6466 | -1/Command | Destroyed M Guard 6466 | -1/Command | All MAIN.C guards destroyed 6474 | -1/Command | Found AEGIS Remote Shield 6476 | -1/Command | Found Prototype Reactor 6476 | -1/Command | Identified Zero-point Reactor 6481 | -1/Command | Found Prototype Device 6481 | -1/Command | Identified Thermal Barrier 6542 | -1/Command | Assembled emerged from beneath the floor 6542 | -1/Command | Discovered new exit (range 17) 6569 | -1/Command | Assembled emerged from beneath the floor 6661 | -1/Command | Met MAIN.C 6711 | -1/Command | MAIN.C's shell transforms into a squad of autonomous robots 6711 | -1/Command | Destroyed MAIN.C Shell 6711 | -1/Command | 0b10 Conduit disabled 6711 | -1/Command | Spotted M Shell/Def 6711 | -1/Command | Spotted M Shell/Atk 6711 | -1/Command | Spotted M Shell/Def 6711 | -1/Command | Spotted M Shell/Atk 6711 | -1/Command | Spotted M Shell/Atk 6711 | -1/Command | Spotted M Shell/Def 6711 | -1/Command | Spotted M Shell/Atk 6711 | -1/Command | Spotted M Shell/Def 6714 | -1/Command | MAIN.C activated Command garrisons 6718 | -1/Command | Sigix Exoskeleton integrity reduced to 60% 6726 | -1/Command | Core integrity fell below 50% 6751 | -1/Command | Sigix Exoskeleton integrity reduced to 40% 6751 | -1/Command | System corruption reached 10% 6751 | -1/Command | Failed to warp due to unstable space 6764 | -1/Command | Sigix Exoskeleton integrity reduced to 20% 6765 | -1/Command | Core integrity fell below 20% 6771 | -1/Command | Exoskeleton Destroyed Last Messages --------------- 06762_ Quantum Shear penetrates Reinforced Barrier. 06762_ Quantum Shear penetrates M Shell/Atk. 06762_ Quantum Shear penetrates M Shell/Def. 06764_ Exo-853F: "Integrity reduced to 20%, immediate ERK application recommended to prevent critical system failure." 06764_ Quantum Shear penetrates MAIN.C. 06764_ G-73 Enforcer Unknown Leg severed. 06764_ Quantum Shear penetrates MAIN.C. 06765_ Adv. Target Analyzer destroyed. 06765_ Critical hit (Blast). 06767_ Quantum Shear penetrates MAIN.C. 06767_ Destroyed Adv. Heat Sink. 06767_ Quantum Shear penetrates MAIN.C. 06767_ M Shell/Atk suffers critical hit (Burn). 06770_ Quantum Shear penetrates MAIN.C. 06770_ G-73 Enforcer destroyed. 06770_ Quantum Shear penetrates M Shell/Atk. 06771_ Sigix Exoskeleton destroyed. Map ----- +----------------------------------------------------+ | ?????????????????????????????????????????????????? | | ?????????????????????????????????????????????????? | | ?????????????????????????????????????????????????# | | ?????????????????????????????????????????????????? | | ?????????????????????????????????????????????????? | | ?????????????????????????????????????????????????# | | ?????????????????????????????????????????????????? | | ??????????????#?#????????#???????????????????????# | | ??????#??############## ?????????????????## | | ?#############################//h#?????????????### | | ##############################i h##???????????#### | | ############################## h####?????????#### | | ##############################hh #####???????##### | | ############################## xg######?????###### | | ##############################h #######????###### | | ############################## g#######????###### | | ##############################i ########??####### | | ##############################C ################# | | ############################## ################# | | ############################## g ################# | | ############################## ge################# | | ##############################hx ################# | | ########################## g################# | | ############## ###########gg ################# | | ########################## g ################# | | /% %=%!%==%!pYX# ##ggg################# | | / % !/[%=%iYgYM####p ################# | | / % % %!%!%%[iiYg# ## gi################# | | ###################ibh#### C ################# | | ###################xgm####xC ################# | | ###################pph#### xC## # ##### ##### | | ""###################hph!###C ## # ### | | """"###################/pp#### g ### ## ## | | """"###################bhpphgpg bg | | """"################### hgbhpggb h | | " ################### phlxglbhgC h | | " ################### hgpp "%gh" | | " " ################# #gg hg bb"Clg | | """ ################### l ###b" ## # ## | | " ##########################"%"### ### ### | | " ########################## " ################# | | """"########################## ################# | | " ########################## ################# | | ############################## ################# | | ############################## ################# | | ????##??#??################### ################# | | ????????????################## ################# | | ??????????????################ ################# | | ???????????????############### ################# | | ????????????????############## ################# | +----------------------------------------------------+ Best States ------------- Heat Dissipation 158 Energy Generation 105 Energy Capacity 940 Matter Stores 300 Matter Capacity 300 Sight Range 16 Robot Scan Range 16 Terrain Scan Range 20 Terrain Scan Density 210 Additional Mass Support 20 Corruption Containment 12 Armor Coverage 375 Resistance: KI 50 Resistance: TH 50 Resistance: EX 50 Resistance: EM 50 Resistance: I 50 Resistance: S 50 Resistance: P 50 Utility Shielding 66 Point Defense Rating 240 Evasion (%) 69 Targeting Accuracy 20 Melee Accuracy 12 Target Analysis 12 Recoil Reduction 4 Offensive Hacking 66 Defensive Hacking 10 Item Schematics ----------------- None Robot Schematics ------------------ None Fabricated ------------ Cld. Cesium-ion Thruster | x1 | -5/Factory Alien Tech Used ----------------- Phase Redirector Core Reset Matrix Integrity Redistributor Sigix Sheargun Integrated Reactor LRC Inertial Stabilizer Sigix Exoskeleton Subatomic Replicator High-powered Transdimensional Reconstructor Achievements -------------- Maximum Efficiency No Explosion For You Challenges ------------ None Game ------ Seed DroneSupercompositeArray Manual? 0 Play Time 02:21:09 Cumulative 172.0 hours Start 2024.11.30 @ 21:03:51 End 2024.11.30 @ 23:38:47 Sessions 1 Manual Loads 0 Difficulty Rogue Special Mode None Game No. 154 Rogue 135 Adventurer 16 Explorer 3 Win Type - Total 14 Types 8/0/5/1/0/0/0/0/0 Lore% 46 Gallery% 72 Achievement% 66 Wizard Run 0 Options --------- Layout 2 ASCII 0 Keyboard 0 Movement Numpad Keybinds 1 Fullscreen 2 Font 24/Terminus Map View 50x44 Zoom Use 0% Tactical HUD 1 Map Filters NONE Filters NONE Steam 1 RUN: 6e98f6be-722a-4066-8aaa-86f481cd2f88